{"text_format":"3","workbook":"xlsx","n_sheets":1,"sheets":["Copper Store"],"not_rendered":{"images":1,"external_links":10,"defined_names":177},"read":"whole","date_system":"1900"}

{"sheet":"Copper Store","index":0,"n_rows":1078,"n_cols":6,"rows_kept":1078,"merged":[[102,1,103,1]]}
[]
[null,"COPPER STORE EXTENSION FOR TSS "]
[null,"DESCRIPTION","UNIT","QTY","RATE","AMOUNT"]
[]
[null,"SECTION NO. 1"]
[]
[null,"BILL NO. 1"]
[]
[null,"PRELIMINARIES"]
[]
[null,"FIXED CHARGES ITEMS"]
[]
[null,"Establish Facilities on Site"]
[]
[{"v":1,"d":"1 "},"Contractual Requirements","SUM",{"v":1,"d":"1 "},null,{"$f":"D15*E15","v":{"v":0,"d":"0.00"}}]
[]
[{"v":2,"d":"2 "},"Site Offices and Storage Sheds including temporary fencing.\t","SUM",{"v":1,"d":"1 "},null,{"$f":"D17*E17","v":{"v":0,"d":"0.00"}}]
[]
[{"v":3,"d":"3 "},"Ablution and latrine facilities\t","SUM",{"v":1,"d":"1 "},null,{"$f":"D19*E19","v":{"v":0,"d":"0.00"}}]
[]
[{"v":4,"d":"4 "},"Tools and Equipment\t","SUM",{"v":1,"d":"1 "},null,{"$f":"D21*E21","v":{"v":0,"d":"0.00"}}]
[]
[{"v":5,"d":"5 "},"Establishment of Plant on Site\t","SUM",{"v":1,"d":"1 "},null,{"$f":"D23*E23","v":{"v":0,"d":"0.00"}}]
[]
[{"v":6,"d":"6 "},"Electrical power and communications","SUM",{"v":1,"d":"1 "},null,{"$f":"D25*E25","v":{"v":0,"d":"0.00"}}]
[]
[null,"OTHER FIXED CHARGES"]
[]
[{"v":7,"d":"7 "},"Remove contractor's site establishment on completion including making good and restoring the site to the satisfaction of the Client/Engineer.","SUM",{"v":1,"d":"1 "},null,{"$f":"D29*E29","v":{"v":0,"d":"0.00"}}]
[]
[null,"TIME RELATED ITEMS"]
[]
[null,"Operate and maintain facilities on site for the duration of construction facilities for contractor"]
[]
[{"v":8,"d":"8 "},"Site Offices and Storage Sheds\t","Month",{"v":4,"d":"4 "},null,{"$f":"D35*E35","v":{"v":0,"d":"0.00"}}]
[]
[]
[]
[null,"Carried Forward",null,null,"R",{"$f":"SUM(F14:F38)","v":{"v":0,"d":"0.00"}}]
[]
[]
[null,"Section No.1"]
[null,"PRELIMINARIES"]
[null,"Bill No.1"]
[null,"Preliminaries"]
[null,"ROSHERVILLE ROTEK INDUSTRIES"]
[]
[null,"Carried Forward",null,null,"R",{"$f":"F39","v":{"v":0,"d":"0.00"}}]
[]
[{"v":9,"d":"9 "},"Security (24/7), two (2) security guards at all times \t","Month",{"v":4,"d":"4 "},null,{"$f":"D50*E50","v":{"v":0,"d":"0.00"}}]
[]
[{"v":10,"d":"10 "},"Ablution and latrine facilities\t","Month",{"v":4,"d":"4 "},null,{"$f":"D52*E52","v":{"v":0,"d":"0.00"}}]
[]
[{"v":11,"d":"11 "},"Tools and Equipment\t","Month",{"v":4,"d":"4 "},null,{"$f":"D54*E54","v":{"v":0,"d":"0.00"}}]
[]
[{"v":12,"d":"12 "},"Water Supply\t","Month",{"v":4,"d":"4 "},null,{"$f":"D56*E56","v":{"v":0,"d":"0.00"}}]
[]
[{"v":13,"d":"13 "},"Electric power and communications / cell phones etc\t","Month",{"v":4,"d":"4 "},null,{"$f":"D58*E58","v":{"v":0,"d":"0.00"}}]
[]
[{"v":14,"d":"14 "},"Company/head office overhead cost.\t","Month",{"v":4,"d":"4 "},null,{"$f":"D60*E60","v":{"v":0,"d":"0.00"}}]
[]
[{"v":15,"d":"15 "},"Living accomodation","Month",{"v":4,"d":"4 "},null,{"$f":"D62*E62","v":{"v":0,"d":"0.00"}}]
[]
[{"v":16,"d":"16 "},"Supervision","Month",{"v":4,"d":"4 "},null,{"$f":"D64*E64","v":{"v":0,"d":"0.00"}}]
[]
[]
[{"v":17,"d":"17 "},"Standing time due to Eskom causing delay. Interruption exceeding 5hrs will be considered of working day.","p/day",{"v":1,"d":"1 "},null,{"$f":"D67*E67","v":{"v":0,"d":"0.00"}}]
[]
[{"v":18,"d":"18 "},"Standing time due to Eskom causing delay. Interruption but not exceeding 5hrs will be a rate charge per hour","p/hour",{"v":1,"d":"1 "},null,{"$f":"D69*E69","v":{"v":0,"d":"0.00"}}]
[]
[null,"HEALTH AND SAFETY"]
[]
[{"v":19,"d":"19 "},"Prepare, submit and obtain approval of safety plan/file and lodge same on site.","SUM",{"v":1,"d":"1 "},null,{"$f":"D73*E73","v":{"v":0,"d":"0.00"}}]
[]
[{"v":20,"d":"20 "},"Personal Protective Equipment","SUM",{"v":1,"d":"1 "},null,{"$f":"D75*E75","v":{"v":0,"d":"0.00"}}]
[]
[{"v":21,"d":"21 "},"Transportation of Employees","Month",{"v":4,"d":"4 "},null,{"$f":"D77*E77","v":{"v":0,"d":"0.00"}}]
{"$rows_empty":10}
[null,"Carried Forward",null,null,"R",{"$f":"SUM(F48:F87)","v":{"v":0,"d":"0.00"}}]
[]
[]
[null,"Section No.1"]
[null,"PRELIMINARIES"]
[null,"Bill No.1"]
[null,"Preliminaries"]
[null,"ROSHERVILLE ROTEK INDUSTRIES"]
[]
[null,"Carried Forward",null,null,"R",{"$f":"F88","v":{"v":0,"d":"0.00"}}]
[]
[{"v":22,"d":"22 "},"Maintenance and revision(s), where necessary, of the safety plan/file and all activities (tool box talks, audits etc) necessary to ensure compliance with the provision of the OHS act and project safety specification","Month",{"v":4,"d":"4 "},null,{"$f":"D99*E99","v":{"v":0,"d":"0.00"}}]
[]
[null,"COVID-19 Occupational Health and Safety in work places"]
[]
[{"v":23,"d":"23 "},"The contractor shall comply with all the requirements set out in Department of Labour issued COVID-19 Occupational Health and Safety Measures in Workplaces COVID-19 (C 19 OHS), 2020 as per Government Gazette 43257 of 29th April 2020It is required of the contractor to thoroughly study the latest Occupation Health and Safety Measures in Workplaces COVID-19 (C 19 OHS), 2020 that must be read together with and is deemed to be incorporated under this section of the bills of quantities.The contractor must take note that compliance with Occupational Health and Safety Measures in workplace COVID-19 (C19 OHS) is compulsory, in the event of partial or total non-compliance the principal agent/ Client notwithstanding any other clause to the contrary, reserves a right to delay issuing any progress payment certificate until the contractor provides satisfactory proof of compliance. The contractor shall not be entitled to any compensation of whatsoever nature, including interest, due to such delay of payment.Provision for pricing of the Occupational Health and Safety Measures in Workplaces COVID-19 ( C19 OHS), 2020 is made under this clause and it is explicitly pointed out that all requirements of the aforementioned are deemed to be priced hereunder and no additional claims in this regard shall be entertained.","SUM",{"v":1,"d":"1 "},null,{"$f":"D103*E103","v":{"v":0,"d":"0.00"}}]
[]
[]
[]
[]
[]
[]
[null,"Carried Forward",null,null,"R",{"$f":"SUM(F97:F109)","v":{"v":0,"d":"0.00"}}]
[]
[]
[null,"Section No.1"]
[null,"PRELIMINARIES"]
[null,"Bill No.1"]
[null,"Preliminaries"]
[null,"ROSHERVILLE ROTEK INDUSTRIES"]
[]
[null,"Carried Forward",null,null,"R",{"$f":"F110","v":{"v":0,"d":"0.00"}}]
{"$rows_empty":17}
[null,"Carried to Final Summary",null,null,"R",{"$f":"SUM(F119:F136)","v":{"v":0,"d":"0.00"}}]
[]
[]
[null,"Section No.1"]
[null,"PRELIMINARIES"]
[null,"Bill No.1"]
[null,"Preliminaries"]
[null,{"$f":"B117","v":"ROSHERVILLE ROTEK INDUSTRIES"}]
[]
[]
[null,"DESCRIPTION","UNIT","QTY","RATE","AMOUNT"]
[]
[null,"SECTION NO. 2"]
[]
[null,"BILL NO 1"]
[]
[null,"ALTERATIONS"]
[]
[null,"For preambles see \"Model Preambles for Trades (2008 Edition)\" and Supplementary preambles as specified in the Trades."]
[]
[null,"TENDERERS ARE TO NOTE THAT ALL WORK IS TO BE EXECUTED IN EXISTING BUILDINGS IN A COMBINATION OF NEW WORK, WORK IN PATCHES AND WORK IN SMALL QUANTITIES."]
[]
[null,"Site inspection"]
[]
[null,"The Tenderer is advised to visit the site, inspect the existing premises and acquaint himself thoroughly with the nature of the work specified."]
[]
[null,"Sizes and dimensions"]
[]
[null,"All sizes and dimensions stated herein are approximate and deemed only sufficient to identify the item of work concerned."]
[]
[null,"No allowance for overbreak has been made to any of the adjoining structures, walls, finishes, etc., where removals or pockets occur (the nett opening size, etc., has been made good in later items of this bill where such making good has not been included with the item) and the Contractor must allow in his prices for making good any overbreak that may occur."]
[]
[null,"Materials"]
[null,"Old materials from alterations, except where described to be re-used or handed over, become the property of the contractor."]
[]
[null,"Carried Forward",null,null,"R",{"$f":"SUM(F161:F171)","v":{"v":0,"d":"0.00"}}]
[]
[]
[null,"Section No.2"]
[null,"BUILDING WORKS"]
[null,"Bill No.1"]
[null,"Alteration"]
[null,"ROSHERVILLE ROTEK INDUSTRIES"]
[]
[null,"Carried Forward",null,null,"R",{"$f":"F172","v":{"v":0,"d":"0.00"}}]
[]
[null,"Old materials from the alterations, except where described to be re-used or handed over, as well as all rubish, etc., must be regularly carted from the site to registered municipal dumping site and not be allowed to accumulate on or around the site. The contractor to provide a proof of registered dumping site to the Principal Agent."]
[null,"None of the old materials are to be used for new work except where specifically described as being set aside for re-use."]
[]
[null,"Where certain materials or articles from demolitions or alterations are described as to be handed over by the Contractor to the Client, such materials or articles shall be properly stored by the Contractor, until handing over thereof. The Contractor must obtain an official receipt listing the materials or articles and dates of handing over. If the Contractor fails to submit the receipt when requested to do so, it shall be deemed that the materials or articles are still in his possession and he will be held liable to the Client for the full replacement value thereof, which amount will be deducted from any monies due to the Contractor."]
[]
[null,"General"]
[]
[null,"All new finishes are measured in the relevant trades for new work."]
[]
[null,"Allow for watering the works sufficiently to prevent nuisance from dust."]
[]
[null,"All alteration works described hereunder shall imply the use of an approved screed or plaster repairing compound and preparing existing surfaces to receive new."]
[null,"Provide all necessary propping, etc., required to ensure the safety and stability of the structure during the contract period and remove at completion."]
[]
[null,"Carried Forward",null,null,"R",{"$f":"SUM(F188:F196)","v":{"v":0,"d":"0.00"}}]
[]
[null,"Section No.2"]
[null,"BUILDING WORKS"]
[null,"Bill No.1"]
[null,"Alteration"]
[null,"ROSHERVILLE ROTEK INDUSTRIES"]
[]
[null,"Carried Forward",null,null,"R",{"$f":"F197","v":{"v":0,"d":"0.00"}}]
[]
[null,"Provide all necessary additional barricades, screens, overhead protections, etc., required to ensure the safety of persons, property, etc., and remove at completion."]
[]
[null,"All alteration work is within an existing facility. The contractor shall take utmost care to minimise damage to existing completed works in the vicinity of the alteration works."]
[]
[null,"All alteration work is within an existing facility. The contractor shall take utmost care to minimise damage to existing completed works in the vicinity of the alteration works."]
[]
[null,"REMOVAL OF EXISTING WORK"]
[]
[null,"Taking down and removing roofs, floors, panelling, ceilings, partitions, etc"]
[]
[{"v":1,"d":"1 "},"Gutter and down pipe.","m",{"v":156,"d":"156 "},null,{"$f":"ROUND($D217*E217,2)","v":{"v":0,"d":"0.00"}}]
[]
[null,"Take out, store and re-use later on same positions"]
[]
[{"v":2,"d":"2 "},"Paving","m²",{"v":239,"d":"239 "},null,{"$f":"ROUND($D221*E221,2)","v":{"v":0,"d":"0.00"}}]
[]
[null,"OPENINGS THROUGH EXISTING WALLS ETC"]
[]
[null,"Breaking out for and forming plain openings through brick walls including necessary precast concrete lintels and making good plaster on both sides and into reveals and with 110mm concrete thresholds with steel trowelled finish (making good paintwork elsewhere)"]
[]
[{"v":3,"d":"3 "},"Opening 4800 x 3170mm high through one brick wall","No",{"v":3,"d":"3 "},null,{"$f":"ROUND($D227*E227,2)","v":{"v":0,"d":"0.00"}}]
[]
[]
[]
[]
[]
[]
[null,"Carried Forward",null,null,"R",{"$f":"SUM(F205:F233)","v":{"v":0,"d":"0.00"}}]
[]
[null,"Section No.2"]
[null,"BUILDING WORKS"]
[null,"Bill No.1"]
[null,"Alteration"]
[null,"ROSHERVILLE ROTEK INDUSTRIES"]
[]
[null,"Carried Forward",null,null,"R",{"$f":"F234","v":{"v":0,"d":"0.00"}}]
[]
[null,"Breaking out and removing window and brick up with one brick wall including necessary precast concrete lintels and making good plaster on one side and face brick one side and with 110mm concrete thresholds with steel trowelled finish (making good paintwork elsewhere)"]
[]
[{"v":4,"d":"4 "},"Window size 1680 x 1570mm high through one brick wall","No",{"v":8,"d":"8 "},null,{"$f":"ROUND($D246*E246,2)","v":{"v":0,"d":"0.00"}}]
{"$rows_empty":31}
[null,"Carried Forward to Summary of Section No. 2",null,null,"R",{"$f":"SUM(F242:F277)","v":{"v":0,"d":"0.00"}}]
[]
[]
[null,{"$f":"B236","v":"Section No.2"}]
[null,{"$f":"B237","v":"BUILDING WORKS"}]
[null,"Bill No.1"]
[null,"Alteration"]
[null,"ROSHERVILLE ROTEK INDUSTRIES"]
[]
[]
[null,"DESCRIPTION","UNIT","QTY","RATE","AMOUNT"]
[]
[null,"SECTION NO.2"]
[]
[null,"BUILDING WORK"]
[]
[null,"BILL NO.2"]
[]
[null,"FOUNDATIONS"]
[]
[null,"SUPPLEMENTARY PREAMBLES"]
[]
[null,"Nature of ground"]
[]
[null,"The nature of the ground is assumed to be sandy weathered granite, therefore \"earth\", but possibly interspersed with \"hard rock\""]
[]
[null,"Excavation for working space in rock"]
[]
[null,"Notwithstanding clause 11 page 8 of the Standard System of Measuring Building Work, excavation for working space in rock will be measured in cubic metres to the extent executed and given as \"extra over\" bulk excavation or trench and hole excavation as the case may be"]
[]
[null,"Carting away of excavated material"]
[]
[null,"Descriptions of carting away of excavated material shall be deemed to include loading excavated material onto trucks directly from the excavations or, alternatively, from stock piles situated on the building site"]
[]
[null,"Filling"]
[]
[null,"Notwithstanding the reference to prescribed multiple handling in clause 1 page 6 of the Standard System of Measuring Building Work, prices for filling and backfilling shall include for all selection and any multiple handling of material"]
[]
[null,"Carried Forward",null,null,"R",{"$f":"SUM(F307:F315)","v":{"v":0,"d":"0.00"}}]
[]
[]
[null,"Section No.2"]
[null,"BUILDING WORKS"]
[null,"Bill No.2"]
[null,"Foundations"]
[null,"ROSHERVILLE ROTEK INDUSTRIES"]
[]
[null,"Carried Forward",null,null,"R",{"$f":"F316","v":{"v":0,"d":"0.00"}}]
[]
[null,"Soil poisoning"]
[]
[null,"Ant and weed poisoning will be applied in accordance to SABS specifications by Registered and Approved Specialists who will issue a five (5) year guarantee. The contractor will only be paid for this items once they have produced  the said cerfificate to the Principal Agent"]
[]
[null,"EARTHWORKS"]
[]
[null,"EXCAVATION, FILLING, ETC"]
[]
[null,"Excavation in earth not exceeding 2m deep"]
[]
[{"v":1,"d":"1 "},"Trenches","m³",{"v":58,"d":"58 "},null,{"$f":"ROUND($D337*E337,2)","v":{"v":0,"d":"0.00"}}]
[]
[{"v":2,"d":"2 "},"Holes ","m³",{"v":35,"d":"35 "},null,{"$f":"ROUND($D339*E339,2)","v":{"v":0,"d":"0.00"}}]
[]
[null,"Extra over trench and hole excavations in earth for excavation in"]
[]
[{"v":3,"d":"3 "},"Soft rock","m³",{"v":9,"d":"9 "},null,{"$f":"ROUND($D343*E343,2)","v":{"v":0,"d":"0.00"}}]
[]
[{"v":4,"d":"4 "},"Hard rock","m³",{"v":5,"d":"5 "},null,{"$f":"ROUND($D345*E345,2)","v":{"v":0,"d":"0.00"}}]
[]
[null,"Extra over all excavations for carting away"]
[]
[{"v":5,"d":"5 "},"Surplus material from excavations  on site to a dumping site to be located by the contractor","m³",{"v":61,"d":"61 "},null,{"$f":"ROUND($D349*E349,2)","v":{"v":0,"d":"0.00"}}]
[]
[null,"Risk of collapse of excavations"]
[]
[{"v":6,"d":"6 "},"Sides of trench and hole excavations not exceeding 1,5m deep","m²",{"v":219,"d":"219 "},null,{"$f":"ROUND($D353*E353,2)","v":{"v":0,"d":"0.00"}}]
[]
[null,"Keeping excavations free of water"]
[]
[{"v":7,"d":"7 "},"Keeping excavations free of all water other than subterranean water","Lump sum",{"v":1,"d":"1 "},null,{"$f":"ROUND($D357*E357,2)","v":{"v":0,"d":"0.00"}}]
[]
[null,"Carried Forward",null,null,"R",{"$f":"SUM(F325:F357)","v":{"v":0,"d":"0.00"}}]
[]
[]
[null,"Section No.2"]
[null,"BUILDING WORKS"]
[null,"Bill No.2"]
[null,"Foundations"]
[null,"ROSHERVILLE ROTEK INDUSTRIES"]
[]
[null,"Carried Forward",null,null,"R",{"$f":"F359","v":{"v":0,"d":"0.00"}}]
[]
[null,"Earth filling obtained from the excavations and /or prescribed stock piles on site including compacted to  93% Mod AASHTO density"]
[]
[{"v":8,"d":"8 "},"Under floors, steps, paving, etc(provisional)","m³",{"v":3,"d":"3 "},null,{"$f":"ROUND($D372*E372,2)","v":{"v":0,"d":"0.00"}}]
[]
[{"v":9,"d":"9 "},"Backfilling to trenches, holes, etc(provisional)","m³",{"v":26,"d":"26 "},null,{"$f":"ROUND($D374*E374,2)","v":{"v":0,"d":"0.00"}}]
[]
[null,"Approved G6 filling supplied and carted by the contractor and compacted in layers not exceeding 150mm to 95% Mod AASHTO density"]
[]
[{"v":10,"d":"10 "},"Under floors, steps, paving etc.","m³",{"v":22,"d":"22 "},null,{"$f":"ROUND($D378*E378,2)","v":{"v":0,"d":"0.00"}}]
[]
[null,"Compaction of surfaces"]
[]
[{"v":11,"d":"11 "},"Compaction of ground surface under floors etc including scarifying for a depth of 150mm, breaking down oversize material, adding suitable material where necessary and compacting to 93% Mod AASHTO density","m²",{"v":98,"d":"98 "},null,{"$f":"ROUND($D382*E382,2)","v":{"v":0,"d":"0.00"}}]
[]
[null,"Prescribed density tests on filling"]
[]
[{"v":12,"d":"12 "},"\"Modified AASHTO Density\" test","No",{"v":3,"d":"3 "},null,{"$f":"ROUND($D386*E386,2)","v":{"v":0,"d":"0.00"}}]
[]
[null,"SOIL POISONING"]
[]
[null,"Soil insecticide"]
[]
[{"v":13,"d":"13 "},"Under floors etc including forming and poisoning shallow furrows against foundation walls etc, filling in furrows and ramming","m²",{"v":98,"d":"98 "},null,{"$f":"ROUND($D392*E392,2)","v":{"v":0,"d":"0.00"}}]
[]
[{"v":14,"d":"14 "},"To bottoms and sides of trenches etc","m²",{"v":303,"d":"303 "},null,{"$f":"ROUND($D394*E394,2)","v":{"v":0,"d":"0.00"}}]
[]
[]
[]
[]
[]
[]
[null,"Carried Forward to Summary of Section No. 2",null,null,"R",{"$f":"SUM(F368:F400)","v":{"v":0,"d":"0.00"}}]
[]
[]
[null,{"$f":"B362","v":"Section No.2"}]
[null,{"$f":"B363","v":"BUILDING WORKS"}]
[null,"Bill No.2"]
[null,"Foundations"]
[null,"ROSHERVILLE ROTEK INDUSTRIES"]
[]
[]
["ITEM NO","DESCRIPTION","UNIT","QTY","RATE","AMOUNT"]
[]
[null,"SECTION NO.2"]
[]
[null,"BUILDING WORK"]
[]
[null,"BILL NO.3"]
[]
[null,"CONCRETE, FORMWORK AND REINFORCEMENT"]
[]
[null,"For preambles see \"Model Preambles for Trades (2008 Edition)\" and Supplementary preambles as specified in the Trades."]
[]
[null,"---------------------------------------"]
[]
[null,"SUPPLEMENTARY PREAMBLES"]
[]
[null,"Cost of tests"]
[]
[null,"The costs of making, storing and testing of concrete test cubes as required under clause 7 \"Tests\" of SABS 1200 G shall include the cost of providing cube moulds necessary for the purpose, for testing costs and for submitting reports on the tests to the architect.  The testing shall be undertaken by an independent firm or institution nominated by the contractor and to the approval of the architect.  (Test cubes are measured separately)"]
[]
[null,"Breeze concrete shall consist of twelve parts clean dry furnace ash, free from coal or other foreign matter, to one part cement (12:1), the ash graded up to particles which will pass a 16,5mm ring from a minimum which fails to pass a 4,75mm mesh.  The finer materials from the screening are to be first mixed with the cement into a mortar and the ash added afterwards and thoroughly incorporated"]
[]
[]
[]
[]
[null,"Carried Forward",null,null,"R",{"$f":"SUM(F421:F433)","v":{"v":0,"d":"0.00"}}]
[]
[]
[null,"Section No.2"]
[null,"BUILDING WORKS"]
[null,"Bill No.3"]
[null,"Concrete, Formwork and Reinforcement"]
[null,"ROSHERVILLE ROTEK INDUSTRIES"]
[]
[null,"Carried Forward",null,null,"R",{"$f":"F436","v":{"v":0,"d":"0.00"}}]
[]
[null,"Formwork"]
[]
[null,"Description of formwork shall be deemed to include use and waste only (except where described as \"left in\" or \"permanent\"), for fitting together in the required forms, wedging, plumbing and fixing to true angles and surfaces as necessary to ensure easy release during stripping and for reconditioning as necessary before re-use"]
[]
[null,"The vertical strutting shall be carried down to such construction as is sufficiently strong to afford the required support without damage and shall remain in position until the newly constructed work is able to support itself"]
[]
[null,"Formworks to soffits of solid slabs etc shall be deemed to be slabs not exceeding 250mm thick unless otherwise described"]
[]
[null,"Formwork to soffits of slabs, beams, etc shall be deemed to be propped up exceeding 1,5m and not exceeding 3,5m high unless otherwise described"]
[]
[null,"Formwork to sides of bases, pile caps, ground beams, etc will only be measured where it is prescribed by the engineer for design reasons.  Formwork necessitated by irregularity or collapse of excavated faces will not be measured and the cost thereof shall be deemed to be included in the allowance for taking the risk of collapse of the sides of the excavations, provision for which is made in \"Earthworks\""]
[]
[null,"UNREINFORCED CONCRETE"]
[]
[null,"15MPa/19mm concrete"]
[]
[{"v":1,"d":"1 "},"50mm thick Blinding layer on Plinths","m²",{"v":20,"d":"20 "},null,{"$f":"ROUND($D463*E463,2)","v":{"v":0,"d":"0.00"}}]
[]
[{"v":2,"d":"2 "},"50mm minimum thickness","m²",{"v":27,"d":"27 "},null,{"$f":"ROUND($D465*E465,2)","v":{"v":0,"d":"0.00"}}]
[]
[]
[null,"Carried Forward",null,null,"R",{"$f":"SUM(F462:F467)","v":{"v":0,"d":"0.00"}}]
[]
[]
[null,"Section No.2"]
[null,"BUILDING WORKS"]
[null,"Bill No.3"]
[null,"Concrete, Formwork and Reinforcement"]
[null,"ROSHERVILLE ROTEK INDUSTRIES"]
[]
[null,"Carried Forward",null,null,"R",{"$f":"F468","v":{"v":0,"d":"0.00"}}]
[]
[null,"REINFORCED CONCRETE"]
[]
[null,"30 MPa/19mm concrete"]
[]
[{"v":3,"d":"3 "},"Plinths","m³",{"v":5,"d":"5 "},null,{"$f":"ROUND($D483*E483,2)","v":{"v":0,"d":"0.00"}}]
[]
[{"v":4,"d":"4 "},"Plinths stub columns","m³",{"v":2,"d":"2 "},null,{"$f":"ROUND($D485*E485,2)","v":{"v":0,"d":"0.00"}}]
[]
[{"v":5,"d":"5 "},"Strip foundation","m³",{"v":8,"d":"8 "},null,{"$f":"ROUND($D487*E487,2)","v":{"v":0,"d":"0.00"}}]
[]
[{"v":6,"d":"6 "},"Slab","m³",{"v":23,"d":"23 "},null,{"$f":"ROUND($D489*E489,2)","v":{"v":0,"d":"0.00"}}]
[]
[{"v":7,"d":"7 "},"Beams","m³",{"v":5,"d":"5 "},null,{"$f":"ROUND($D491*E491,2)","v":{"v":0,"d":"0.00"}}]
[]
[{"v":8,"d":"8 "},"Surface bed","m³",{"v":17,"d":"17 "},null,{"$f":"ROUND($D493*E493,2)","v":{"v":0,"d":"0.00"}}]
[]
[null,"JOINTS"]
[]
[{"v":9,"d":"9 "},"Saw cut joint on floors","m",{"v":55,"d":"55 "},null,{"$f":"ROUND($D497*E497,2)","v":{"v":0,"d":"0.00"}}]
[]
[{"v":10,"d":"10 "},"Expansion joints between concrete and walls","m",{"v":50,"d":"50 "},null,{"$f":"ROUND($D499*E499,2)","v":{"v":0,"d":"0.00"}}]
[]
[null,"GROUTING"]
[]
[{"v":11,"d":"11 "},"Concrete plinths under base","m³",{"v":1,"d":"1 "},null,{"$f":"ROUND($D503*E503,2)","v":{"v":0,"d":"0.00"}}]
[]
[null,"MISCELLANEOUS METAL WORK"]
[]
[{"v":12,"d":"12 "},"Doweling bars to existing concrete","No",{"v":310,"d":"310 "},null,{"$f":"ROUND($D507*E507,2)","v":{"v":0,"d":"0.00"}}]
[]
[{"v":13,"d":"13 "},"Surface preparation and apply wet to dry epoxy as per manufacturer specifications before concrete pouring.","m²",{"v":11,"d":"11 "},null,{"$f":"ROUND($D509*E509,2)","v":{"v":0,"d":"0.00"}}]
[]
[null,"FORMWORK"]
[]
[null,"ROUGH FORMWORK (DEGREE OF ACCURACY II)"]
[]
[null,"Rough formwork to vertical sides"]
[]
[{"v":14,"d":"14 "},"Edge of Pad Foundation","m²",{"v":18,"d":"18 "},null,{"$f":"ROUND($D517*E517,2)","v":{"v":0,"d":"0.00"}}]
[]
[null,"Carried Forward",null,null,"R",{"$f":"SUM(F477:F518)","v":{"v":0,"d":"0.00"}}]
[]
[null,"Section No.2"]
[null,"BUILDING WORKS"]
[null,"Bill No.3"]
[null,"Concrete, Formwork and Reinforcement"]
[null,"ROSHERVILLE ROTEK INDUSTRIES"]
[]
[null,"Carried Forward",null,null,"R",{"$f":"F519","v":{"v":0,"d":"0.00"}}]
[]
[{"v":15,"d":"15 "},"Edge of Strip Foundation","m²",{"v":15,"d":"15 "},null,{"$f":"ROUND($D529*E529,2)","v":{"v":0,"d":"0.00"}}]
[]
[null,"Rough formwork to horizontal"]
[]
[{"v":16,"d":"16 "},"Hand floating on top of plinths","m²",{"v":35,"d":"35 "},null,{"$f":"ROUND($D533*E533,2)","v":{"v":0,"d":"0.00"}}]
[]
[{"v":17,"d":"17 "},"Pad  Foundation","m²",{"v":13,"d":"13 "},null,{"$f":"ROUND($D535*E535,2)","v":{"v":0,"d":"0.00"}}]
[]
[null,"SMOOTH FORMWORK (DEGREE OF ACCURACY II)"]
[]
[null,"Smooth formwork to vertical sides"]
[]
[{"v":18,"d":"18 "},"Edges of Columns","m²",{"v":34,"d":"34 "},null,{"$f":"ROUND($D541*E541,2)","v":{"v":0,"d":"0.00"}}]
[]
[{"v":19,"d":"19 "},"Edge of down stand beams","m²",{"v":10,"d":"10 "},null,{"$f":"ROUND($D543*E543,2)","v":{"v":0,"d":"0.00"}}]
[]
[{"v":20,"d":"20 "},"Edge of upstand beams","m²",{"v":15,"d":"15 "},null,{"$f":"ROUND($D545*E545,2)","v":{"v":0,"d":"0.00"}}]
[]
[{"v":21,"d":"21 "},"Edge of slab","m²",{"v":10,"d":"10 "},null,{"$f":"ROUND($D547*E547,2)","v":{"v":0,"d":"0.00"}}]
[]
[{"v":22,"d":"22 "},"Edge of expansion joints not exceeding 200mm deep","m²",{"v":5,"d":"5 "},null,{"$f":"ROUND($D549*E549,2)","v":{"v":0,"d":"0.00"}}]
[]
[null,"Smooth formwork to horizontal"]
[]
[{"v":23,"d":"23 "},"Power floating on floor slab","m²",{"v":114,"d":"114 "},null,{"$f":"ROUND($D553*E553,2)","v":{"v":0,"d":"0.00"}}]
[]
[{"v":24,"d":"24 "},"Hand floating on upstand beams","m²",{"v":13,"d":"13 "},null,{"$f":"ROUND($D555*E555,2)","v":{"v":0,"d":"0.00"}}]
[]
[{"v":25,"d":"25 "},"Underside of concrete floor slab","m²",{"v":114,"d":"114 "},null,{"$f":"ROUND($D557*E557,2)","v":{"v":0,"d":"0.00"}}]
[]
[{"v":26,"d":"26 "},"Hand floating on roof slab","m²",{"v":114,"d":"114 "},null,{"$f":"ROUND($D559*E559,2)","v":{"v":0,"d":"0.00"}}]
[]
[null,"TEST CUBES"]
[]
[{"v":27,"d":"27 "},"Allow for preparing a set of three concrete strength test cubes, each size 150 x 150 x 150mm, sending them to an approved Testing Laboratory for testing and paying all charges in connection therewith. (Provisional)","Sets",{"v":6,"d":"6 "},null,{"$f":"ROUND($D563*E563,2)","v":{"v":0,"d":"0.00"}}]
[]
[]
[]
[null,"Carried Forward",null,null,"R",{"$f":"SUM(F527:F566)","v":{"v":0,"d":"0.00"}}]
[]
[null,"Section No.2"]
[null,"BUILDING WORKS"]
[null,"Bill No.3"]
[null,"Concrete, Formwork and Reinforcement"]
[null,"ROSHERVILLE ROTEK INDUSTRIES"]
[]
[null,"Carried Forward",null,null,"R",{"$f":"F567","v":{"v":0,"d":"0.00"}}]
[]
[null,"REINFORCEMENT"]
[]
[null,"High tensile steel reinforcement to structural concrete work"]
[]
[{"v":28,"d":"28 "},"All Diameters","t",{"v":7,"d":"7.00"},null,{"$f":"ROUND($D581*E581,2)","v":{"v":0,"d":"0.00"}}]
[]
[null,"Mild steel reinforcement to structural concrete work"]
[]
[{"v":29,"d":"29 "},"All Diameters","t",{"v":1,"d":"1.00"},null,{"$f":"ROUND($D585*E585,2)","v":{"v":0,"d":"0.00"}}]
[]
[null,"Steel Reinforcement"]
[]
[{"v":30,"d":"30 "},"Mesh ref 617 on floor slab","m²",{"v":228,"d":"228 "},null,{"$f":"ROUND($D589*E589,2)","v":{"v":0,"d":"0.00"}}]
[]
[{"v":31,"d":"31 "},"Mesh ref 395 on floor slab","m²",{"v":114,"d":"114 "},null,{"$f":"ROUND($D591*E591,2)","v":{"v":0,"d":"0.00"}}]
{"$rows_empty":22}
[null,"Carried Forward to Summary of Section No. 2",null,null,"R",{"$f":"SUM(F575:F613)","v":{"v":0,"d":"0.00"}}]
[]
[]
[null,{"$f":"B569","v":"Section No.2"}]
[null,{"$f":"B570","v":"BUILDING WORKS"}]
[null,"Bill No.3"]
[null,"Concrete, Formwork and Reinforcement"]
[null,"ROSHERVILLE ROTEK INDUSTRIES"]
[]
["ITEM NO","DESCRIPTION","UNIT","QTY","RATE","AMOUNT"]
[]
[null,"SECTION NO.2"]
[]
[null,"BUILDING WORK"]
[]
[null,"BILL NO. 4"]
[]
[null,"MASONRY"]
[]
[null,"For preambles see \"Model Preambles for Trades (2008 Edition)\" and Supplementary preambles as specified in the Trades."]
[]
[null,"---------------------------------------"]
[]
[null,"SUPPLEMENTARY PREAMBLES"]
[]
[null,"BRICKWORK"]
[]
[null,"Sizes in descriptions"]
[]
[null,"Where sizes in descriptions are given in brick units, \"one brick\" shall represent the length and \"half brick\" the width of a brick"]
[]
[null,"Brick sizes shall be 220mm x 110mm x 75mm."]
[]
[null,"Linings to concrete"]
[]
[null,"Descriptions of linings to concrete, unless otherwise described, shall be deemed to include wire ties"]
[]
[null,"Hollow walls etc"]
[]
[null,"Descriptions of hollow walls shall be deemed to include wire ties and leaving every fifth perpend of the bottom course of the external skin open as a weep hole"]
[]
[]
[]
[]
[null,"Carried Forward",null,null,"R",{"$f":"SUM(F647:F657)","v":{"v":0,"d":"0.00"}}]
[]
[null,"Section No.2"]
[null,"BUILDING WORKS"]
[null,"Bill No.4"]
[null,"Masonry"]
[null,"ROSHERVILLE ROTEK INDUSTRIES"]
[]
[null,"Carried Forward",null,null,"R",{"$f":"F658","v":{"v":0,"d":"0.00"}}]
[]
[null,"Reinforced brick lintels"]
[]
[null,"Lintels shall bear at least 160mm onto adjacent walling.  Where such bearing cannot be obtained due to the proximity of adjacent openings the lintel shall be continuous"]
[]
[null,"Face bricks"]
[]
[null,"Bricks shall be ordered timeously to obtain uniformity in size and colour"]
[]
[null,"Pointing"]
[]
[null,"Descriptions of recessed pointing to fair face brickwork and face brickwork shall be deemed to include square recessed, hollow recessed, weathered pointing, etc"]
[]
[null,"FOUNDATIONS"]
[]
[null,"BRICKWORK"]
[]
[null,"Brickwork of NFX bricks in class II mortar"]
[]
[{"v":1,"d":"1 "},"One brick walls(LI)","m²",{"v":91,"d":"91 "},null,{"$f":"ROUND($D686*E686,2)","v":{"v":0,"d":"0.00"}}]
[]
[null,"BRICKWORK SUNDRIES"]
[]
[null,"Joint forming material in movement joints:"]
[]
[{"v":2,"d":"2 "},"12mm Fibre board built in vertically between brick skins.","m²",{"v":191,"d":"191 "},null,{"$f":"ROUND($D692*E692,2)","v":{"v":0,"d":"0.00"}}]
[]
[null,"Brickwork reinforcement"]
[]
[{"v":3,"d":"3 "},"150mm Wide reinforcement built in horizontally","m",{"v":2089,"d":"2,089 "},null,{"$f":"ROUND($D696*E696,2)","v":{"v":0,"d":"0.00"}}]
[]
[]
[]
[]
[null,"Carried Forward",null,null,"R",{"$f":"SUM(F686:F700)","v":{"v":0,"d":"0.00"}}]
[]
[null,{"$f":"B660","v":"Section No.2"}]
[null,{"$f":"B661","v":"BUILDING WORKS"}]
[null,"Bill No.4"]
[null,"Masonry"]
[null,"ROSHERVILLE ROTEK INDUSTRIES"]
[]
[null,"Carried Forward",null,null,"R",{"$f":"F701","v":{"v":0,"d":"0.00"}}]
[]
[null,"SUPERSTRUCTURE"]
[]
[null,"Brickwork of NFP bricks in class II mortar"]
[]
[{"v":4,"d":"4 "},"One  brick walls (LI)","m²",{"v":304,"d":"304 "},null,{"$f":"ROUND($D715*E715,2)","v":{"v":0,"d":"0.00"}}]
[]
[{"v":5,"d":"5 "},"One  brick gable and parapet walls","m²",{"v":82,"d":"82 "},null,{"$f":"ROUND($D717*E717,2)","v":{"v":0,"d":"0.00"}}]
[]
[null,"Joint forming material in movement joints:"]
[]
[{"v":6,"d":"6 "},"12mm Bitumen impregnated fibre board built in vertically between brick skins not exceeding 300mm wide.","m²",{"v":190,"d":"190 "},null,{"$f":"ROUND($D721*E721,2)","v":{"v":0,"d":"0.00"}}]
[]
[null,"Brickwork reinforcement"]
[]
[{"v":7,"d":"7 "},"150mm Wide reinforcement built in horizontally","m",{"v":3478,"d":"3,478 "},null,{"$f":"ROUND($D725*E725,2)","v":{"v":0,"d":"0.00"}}]
[]
[null,"Turning pieces"]
[]
[{"v":8,"d":"8 "},"230mm Wide turning piece to lintels etc","m",{"v":8,"d":"8 "},null,{"$f":"ROUND($D729*E729,2)","v":{"v":0,"d":"0.00"}}]
[]
[null,"\"Allied Concrete\" prestressed fabricated lintels"]
[]
[{"v":9,"d":"9 "},"110 x 75mm Lintels in lengths not exceeding 3m (Provisional)","m",{"v":15,"d":"15 "},null,{"$f":"ROUND($D733*E733,2)","v":{"v":0,"d":"0.00"}}]
[]
[null,"FACE BRICKWORK"]
[]
[null,"Face bricks (Purchase price of R 7 000,00/1000 VAT excl. delivered to site) pointed with recessed horizontal and vertical joints"]
[]
[{"v":10,"d":"10 "},"Extra over brickwork for face brickwork","m²",{"v":607,"d":"607 "},null,{"$f":"ROUND($D739*E739,2)","v":{"v":0,"d":"0.00"}}]
[]
[null,"Brick-on-edge header course copings, sills, etc of  face bricks ( Purchase price R 7 000.00 / 1000 VAT excl. delivered to site) pointed with recessed joints on all exposed faces"]
[]
[]
[null,"Carried Forward",null,null,"R",{"$f":"SUM(F709:F743)","v":{"v":0,"d":"0.00"}}]
[]
[null,{"$f":"B703","v":"Section No.2"}]
[null,{"$f":"B704","v":"BUILDING WORKS"}]
[null,"Bill No.4"]
[null,"Masonry"]
[null,"ROSHERVILLE ROTEK INDUSTRIES"]
[]
[null,"Carried Forward",null,null,"R",{"$f":"F744","v":{"v":0,"d":"0.00"}}]
[]
[{"v":11,"d":"11 "},"Extra over brickwork for brick-on-edge header course lintel","m",{"v":15,"d":"15 "},null,{"$f":"ROUND($D754*E754,2)","v":{"v":0,"d":"0.00"}}]
[]
[null,"Brick-on-edge header course copings, sills, etc of face bricks(Purchase price of  R7 000.00/1000 VAT excl. delivered to site) pointed with recessed joints on all exposed faces"]
[]
[{"v":12,"d":"12 "},"220mm Wide sill set sloping and slightly protecting outside","m",{"v":15,"d":"15 "},null,{"$f":"ROUND($D758*E758,2)","v":{"v":0,"d":"0.00"}}]
[]
[{"v":13,"d":"13 "},"Coping on top of one brick wall","m",{"v":18,"d":"18 "},null,{"$f":"ROUND($D760*E760,2)","v":{"v":0,"d":"0.00"}}]
{"$rows_empty":28}
[null,"Carried Forward to Summary of Section No. 2",null,null,"R",{"$f":"SUM(F752:F788)","v":{"v":0,"d":"0.00"}}]
[]
[]
[null,{"$f":"B746","v":"Section No.2"}]
[null,{"$f":"B747","v":"BUILDING WORKS"}]
[null,"Bill No.4"]
[null,"Masonry"]
[null,"ROSHERVILLE ROTEK INDUSTRIES"]
[]
["ITEM NO","DESCRIPTION","UNIT","QTY","RATE","AMOUNT"]
[]
[null,"SECTION NO.2"]
[]
[null,"BUILDING WORK"]
[]
[null,"BILL NO.5"]
[]
[null,"WATERPROOFING"]
[]
[null,"For preambles see \"Model Preambles for Trades (2008 Edition)\" and Supplementary preambles as specified in the Trades."]
[]
[null,"---------------------------------------"]
[]
[null,"SUPPLEMENTARY PREAMBLES"]
[]
[null,"Waterproofing"]
[]
[null,"DAMP-PROOFING OF WALLS AND FLOORS"]
[]
[null,"One layer of 375 micron Consol Plastic  Brikgrip DPC\" embossed damp proof course"]
[]
[{"v":1,"d":"1 "},"In walls(LI)","m²",{"v":11,"d":"11 "},null,{"$f":"ROUND($D820*E820,2)","v":{"v":0,"d":"0.00"}}]
[]
[null,"One layer of 250 micron \"Consol Plastic USB Green\" waterproof sheeting sealed at laps with \"Gunplas Pressure Sensitive Tape\""]
[]
[{"v":2,"d":"2 "},"Under surface beds","m²",{"v":98,"d":"98 "},null,{"$f":"ROUND($D824*E824,2)","v":{"v":0,"d":"0.00"}}]
[]
[null,"WATERPROOFING TO ROOFS, BASEMENTS, ETC"]
[]
[null,"4mm \"Derbigum SP4\" waterproofing applied strictly according to manufacturer's specification and instructions"]
[]
[{"v":3,"d":"3 "},"On flat roofs","m²",{"v":114,"d":"114 "},null,{"$f":"ROUND($D830*E830,2)","v":{"v":0,"d":"0.00"}}]
[]
[]
[null,"Carried Forward to Summary of Section No. 2",null,null,"R",{"$f":"SUM(F819:F832)","v":{"v":0,"d":"0.00"}}]
[]
[]
[null,{"$f":"B792","v":"Section No.2"}]
[null,{"$f":"B793","v":"BUILDING WORKS"}]
[null,"Bill No.5"]
[null,"Waterproofing"]
[null,"ROSHERVILLE ROTEK INDUSTRIES"]
[]
["ITEM NO","DESCRIPTION","UNIT","QTY","RATE","AMOUNT"]
[]
[null,"SECTION NO.2"]
[]
[null,"BUILDING WORK"]
[]
[null,"BILL NO. 6"]
[]
[null,"PLASTERING"]
[]
[null,"For preambles see \"Model Preambles for Trades (2008 Edition)\" and Supplementary preambles as specified in the Trades."]
[]
[null,"---------------------------------------"]
[]
[null,"GRANOLITHIC"]
[]
[null,"Untinted granolithic on concrete"]
[]
[{"v":1,"d":"1 "},"30mm Thick on floors and landings","m²",{"v":98,"d":"98 "},null,{"$f":"ROUND($D860*E860,2)","v":{"v":0,"d":"0.00"}}]
{"$rows_empty":21}
[null,"Carried Forward to Summary of Section No. 2",null,null,"R",{"$f":"SUM(F858:F881)","v":{"v":0,"d":"0.00"}}]
[]
[]
[null,{"$f":"B836","v":"Section No.2"}]
[null,{"$f":"B837","v":"BUILDING WORKS"}]
[null,"Bill No.6"]
[null,"Plastering"]
[null,{"$f":"B840","v":"ROSHERVILLE ROTEK INDUSTRIES"}]
[]
["ITEM NO","DESCRIPTION","UNIT","QTY","RATE","AMOUNT"]
[]
[null,"SECTION NO.2"]
[]
[null,"BUILDING WORK"]
[]
[null,"BILL NO.7"]
[]
[null,"PLUMBING AND DRAINAGE"]
[]
[null,"RAINWATER DISPOSAL"]
[]
[null,"Galvanised Industrial gutter and down pipes"]
[]
[{"v":1,"d":"1 "},"150mm x 150mm Gutter","m",{"v":24,"d":"24 "},null,{"$f":"ROUND($D905*E905,2)","v":{"v":0,"d":"0.00"}}]
[]
[{"v":2,"d":"2 "},"150mm Pipes downpipe","m",{"v":32,"d":"32 "},null,{"$f":"ROUND($D907*E907,2)","v":{"v":0,"d":"0.00"}}]
{"$rows_empty":25}
[null,"Carried Forward to Summary of Section No. 2",null,null,"R",{"$f":"SUM(F904:F932)","v":{"v":0,"d":"0.00"}}]
[]
[]
[null,{"$f":"B885","v":"Section No.2"}]
[null,{"$f":"B886","v":"BUILDING WORKS"}]
[null,"Bill No.7"]
[null,"Plumbing and Drainage"]
[null,"ROSHERVILLE ROTEK INDUSTRIES"]
[]
[]
[null,"Section No.2"]
[]
[null,"BUILDING WORKS"]
[]
[null,"SECTION SUMMARY-BUILDING WORKS"]
[]
["Bill ","COLLECTION",{"$nulls":3},"Amount"]
["NO"]
[]
[{"v":1,"d":"1 "},"Alterations",{"$nulls":3},{"$f":"F278","v":{"v":0,"d":"0.00"}}]
[]
[{"v":2,"d":"2 "},"Foundations",{"$nulls":3},{"$f":"F401","v":{"v":0,"d":"0.00"}}]
[]
[{"v":3,"d":"3 "},"Concrete, Formwork and Reinforcement",{"$nulls":3},{"$f":"F614","v":{"v":0,"d":"0.00"}}]
[]
[{"v":4,"d":"4 "},"Masonry",{"$nulls":3},{"$f":"F789","v":{"v":0,"d":"0.00"}}]
[]
[{"v":5,"d":"5 "},"Waterproofing",{"$nulls":3},{"$f":"F833","v":{"v":0,"d":"0.00"}}]
[]
[{"v":6,"d":"6 "},"Plastering",{"$nulls":3},{"$f":"F882","v":{"v":0,"d":"0.00"}}]
[]
[{"v":7,"d":"7 "},"Plumbing and Drainage",{"$nulls":3},{"$f":"F933","v":{"v":0,"d":"0.00"}}]
{"$rows_empty":22}
[null,"Carried to Final Summary",{"$nulls":3},{"$f":"SUM(F952:F985)","v":{"v":0,"d":"0.00"}}]
[]
[]
[null,"Section No.2"]
[null,"BUILDING WORKS"]
[null,{"$f":"B940","v":"ROSHERVILLE ROTEK INDUSTRIES"}]
[]
["ITEM NO","DESCRIPTION","UNIT","QTY","RATE","AMOUNT"]
[]
[null,"SECTION NO. 3"]
[]
[null,"BILL NO.1"]
[]
[null,"PROVISIONAL SUMS"]
[]
[null,"SUPPLEMENTARY PREAMBLES"]
[]
[null,"NOTE: Tenderers are referred to the definition of general attendance on nominated sub-contractors given in Clause 9 of the Preliminaries"]
[]
[null,"NOTE: Under no circumstances may any Prime Cost - Provisional Amount, etc be extended at an amount lower than the amount given in the Bill"]
{"$rows_empty":26}
[null,"Carried Forward",null,null,"R",{"$f":"SUM(F1018:F1032)","v":{"v":0,"d":"0.00"}}]
[]
[null,{"$f":"B936","v":"Section No.2"}]
[null,"PROVISIONAL SUMS"]
[null,"Bill No.1"]
[null,"Provisional Sums"]
[null,{"$f":"B940","v":"ROSHERVILLE ROTEK INDUSTRIES"}]
[]
[null,"Carried Forward",null,null,"R",{"$f":"F1033","v":{"v":0,"d":"0.00"}}]
[]
[null,"THE FOLLOWING PROVISIONAL SUMS ARE FOR WORK TO BE EXECUTED BY SELECTED SUBCONTRACTORS  The following Provisional Sums are for specialists work to be executed by a selected Sub-contractor who upon appointment in terms of the Conditions of Contract shall be deemed to be a Domestic Sub-Contractor to the Contractor  A Selected Sub-Contractor shall be a Sub-contractor executing work for which a sum of money is provided for in the Bills of Quantities or a Sub-contractor executing additional specialist work which arises as a result of an instruction by the Principal Agent/Engineer  Tender documents for such work shall be prepared by the Principal Agent/Engineer in consultation with and to the approval of the Contractor and such tender document shall be issued by the Principal Agent/Engineer to a list of tenderers agreed upon between the Principal Agent/Engineer and Contractor. Tenders shall be submitted to the Principal Agent/Engineer  The Selected Sub-contractor shall be chosen by the Principal Agent/Engineer and the Contractor, and the Contractor shall satisfy himself that such selected sub-contractor can meet the requirements of the Sub-Contract agreement and the Contractor shall inform the Principal Agent/Engineer accordingly  The procedure relating to the method of selection, obtaining of tenders, adjudication thereof and the appointment of the Selected Sub-contractor shall not create any contractual relationship between the Client and the Selected Sub-contractor"]
[]
[null,"Electrical instillation, etc"]
[]
[{"v":1,"d":"1 "},"Provide the sum of R 110 000.00 (One ten Thousand Rand) for electrical installation by Specialists","Item",{"v":1,"d":"1 "},null,{"$f":"ROUND($D1047*E1047,2)","v":{"v":0,"d":"0.00"}}]
[]
[]
[]
[]
[null,"Carried to Final Summary",{"$nulls":3},{"$f":"SUM(F1041:F1051)","v":{"v":0,"d":"0.00"}}]
[]
[]
[null,"Section No.3"]
[]
[null,"Bill No.1"]
[null,"Provisional Sums"]
[null,{"$f":"B940","v":"ROSHERVILLE ROTEK INDUSTRIES"}]
[]
[null,"FINAL SUMMARY"]
["Sect No",{"$nulls":4},"Amount"]
[]
[]
[{"v":1,"d":"1 "},"PRELIMINARIES",null,null,"R",{"$f":"F137","v":{"v":0,"d":"0.00"}}]
[]
[{"v":2,"d":"2 "},"BUILDING WORKS",null,null,"R",{"$f":"F987","v":{"v":0,"d":"0.00"}}]
[]
[{"v":3,"d":"3 "},"ELECTRICAL INSTALLATION AND COMMISONING ",null,null,"R",{"$f":"F1052","v":{"v":0,"d":"0.00"}}]
[]
[]
[null,"SUBTOTAL ",{"$nulls":3},{"$f":"SUM(F1065:F1070)","v":{"v":0,"d":"0.00"}}]
[]
[null,"CONTINGENCY SUM"]
[]
[null,"Add: 5% of contingencies for building work, to be used as directed by the Principal Agent and deducted in whole or in part if not required. ",null,null,"R",{"$f":"F1072*5%","v":{"v":0,"d":"0.00"}}]
[]
[null,"Sub Total carried to form of offer ",null,null,"R",{"$f":"SUM(F1072:F1076)","v":{"v":0,"d":"0.00"}}]